Cogmind - Beta 13 @@@ ROGUE MODE // 2024.03.07 @ 16:06:14 Player: Baxter Result: Destroyed by G-47 Trooper with Particle Gun Performance ------------- Evolutions (2) 1000 Regions Visited (5) 1000 Robots Destroyed (36) 180 Value Destroyed (952) 952 Prototype IDs (25) 500 Alien Tech Used (0) 0 Bonus (300) 300 TOTAL SCORE: 3932 Bonus ------- Aligned with FarCom 300 Cogmind --------- Core Integrity 0/550 Matter 159/300 Energy 100/100 System Corruption 0% Temperature Cool (18) Movement Core (1400) Ox27 Location -8/Materials Parts ------- > --- POWER (1) -------- (None) > --- PROPULSION (4) --- (None) > --- UTILITY (4) ------ Huge Storage Unit Visual Processing Unit > --- WEAPON (2) ------- Heavy Mace > --- INVENTORY (25) --- Light Ion Engine Light Deuterium Engine Light Deuterium Engine Light Nuclear Core Light Treads Wheel Armored Wheel VTOL Module VTOL Module VTOL Module VTOL Module Improved Heat Sink Medium Storage Unit High-capacity Battery (250) Large Matter Pod (150) Sensor Array Improved Terrain Scan Processor ECM Suite Cloak of Protection High-powered Tractor Beam Advanced Beam Cannon Assault Rifle Improved Assault Rifle Improved Assault Rifle Rocket Launcher Peak State ------------ > --- POWER ------------ Light Nuclear Core > --- PROPULSION ------- Light Treads Armored Wheel Armored Wheel Armored Wheel > --- UTILITY ---------- Huge Storage Unit Visual Processing Unit Signal Interpreter Light Armor Plating > --- WEAPON ----------- Improved Assault Rifle Improved Assault Rifle > --- INVENTORY -------- Light Ion Engine Light Deuterium Engine Light Deuterium Engine Light Treads Wheel Compact Wheel Armored Wheel VTOL Module VTOL Module VTOL Module VTOL Module Improved Heat Sink Medium Storage Unit High-capacity Battery Large Matter Pod Sensor Array Improved Terrain Scan Processor ECM Suite Cloak of Protection High-powered Tractor Beam Advanced Beam Cannon Assault Rifle Improved Assault Rifle Rocket Launcher Heavy Mace [Rating: 26] Favorites ----------- Power Ion Engine Engine Ion Engine Power Core Light Nuclear Core Propulsion Wheel Treads Light Treads Wheel Wheel Utility Huge Storage Unit Device Terrain Scanner Storage Huge Storage Unit Processor Signal Interpreter Hackware Hacking Suite Protection Light Armor Plating Weapon Heavy Hammer Energy Cannon Advanced Beam Cannon Ballistic Gun Improved Assault Rifle Launcher Grenade Launcher Impact Weapon Heavy Hammer Build | -11 -10 -10 -10 -9 -8 ------- Run | Yrd Mat Min Exi Min Mat Slots Evolved 4 | . . . . . 4 Power . | . . . . . . Propulsion 2 | . . . . . 2 Utility 2 | . . . . . 2 Weapon . | . . . . . . Parts Attached 59 | 6 27 2 1 3 20 Power 2 | 1 . . . . 1 Engine 1 | 1 . . . . . Core 1 | . . . . . 1 Reactor . | . . . . . . Propulsion 33 | 2 20 . 1 1 9 Treads 13 | 1 9 . . . 3 Leg . | . . . . . . Wheel 20 | 1 11 . 1 1 6 Hover . | . . . . . . Flight . | . . . . . . Utility 7 | 1 3 . . . 3 Device 1 | . . . . . 1 Storage 2 | 1 1 . . . . Processor 2 | . 1 . . . 1 Hackware 1 | . 1 . . . . Protection 1 | . . . . . 1 Artifact . | . . . . . . Weapon 17 | 2 4 2 . 2 7 Energy Gun . | . . . . . . Energy Cannon 1 | . . . . . 1 Ballistic Gun 9 | 2 2 1 . 1 3 Ballistic Cannon . | . . . . . . Launcher 2 | . . 1 . 1 . Special Weapon . | . . . . . . Impact Weapon 5 | . 2 . . . 3 Slashing Weapon . | . . . . . . Piercing Weapon . | . . . . . . Special Melee Weapon . | . . . . . . Unidentified Prototypes 2 | . 1 . . . 1 Parts Lost 11 | . 2 . . . 9 Power 1 | . . . . . 1 Propulsion 4 | . . . . . 4 Utility 4 | . 1 . . . 3 Weapon 2 | . 1 . . . 1 Highest Loss Streak 8 | . 1 . . . 8 To Critical Strikes . | . . . . . . Average Slot Usage (%) 92 | . 95 85 100 100 95 Engine 12 | . 14 14 14 14 5 Treads 1 | . 3 . . . 5 Wheel 21 | . 22 14 28 28 28 Storage 13 | . 14 14 14 14 9 Processor 12 | . 4 14 14 14 17 Hackware 2 | . 8 . . . . Ballistic Gun 8 | . 23 . . 1 10 Launcher 7 | . . 13 14 12 . Impact Weapon 9 | . 1 14 14 14 6 Naked Turns . | . . . . . . Heaviest Build 94 | 14 91 91 91 91 94 Greatest Support 48 | 20 40 10 20 26 48 Greatest Overweight (x) 29 | 1 29 9 4 3 27 Average Overweight (x) 4 | . 3 8 4 3 1 Largest Inventory Capacity 25 | 8 25 25 25 25 25 Average Capacity 24 | 6 23 25 25 25 25 Most Carried 25 | 6 25 25 25 25 25 Average Carried 22 | 3 17 24 24 24 24 Final Capacity 25 | 8 25 25 25 25 25 Final Carried 25 | 6 25 25 25 25 25 Class Distribution -------------------- 86% | Mutant 7% | Assassin 5% | Scavenger-Mutant Dominant Class ---------------- Mutant | -10/Materials Mutant | -10/Mines Mutant | -10/Exiles Mutant | -9/Mines Assassin | -8/Materials Resources | -11 -10 -10 -10 -9 -8 ----------- Run | Yrd Mat Min Exi Min Mat Matter Collected 1343 | 278 585 275 . 30 175 Remotely . | . . . . . . Salvage Created 1330 | 87 565 246 . 77 355 Parts 71 | . 41 14 . 1 15 Haulers Intercepted 2 | . 1 . . . 1 Recyclers Shooed 2 | . 2 . . . . Parts Field Recycled . | . . . . . . Retrieved Matter . | . . . . . . Parts Self-Destructed . | . . . . . . Prevented . | . . . . . . Kills | -11 -10 -10 -10 -9 -8 ------- Run | Yrd Mat Min Exi Min Mat Combat Hostiles Destroyed 25 | . 13 6 . . 6 Melee 1 | . . . . . 1 Guns 17 | . 13 . . . 4 AOE 6 | . . 6 . . . Classes Destroyed 8 | 1 5 1 . . 1 Tunneler 1 | . . 1 . . . Hauler 2 | . 1 . . . 1 Recycler 3 | 1 . 1 . 1 . Operator 2 | . 2 . . . . Watcher 3 | . 2 . . . 1 Swarmer 6 | . 3 3 . . . Grunt 18 | . 10 3 . . 5 Sentry 1 | . . . . . 1 Best Kill Streak 4 | 1 3 4 . 1 4 Combat Bots Only 4 | . 3 3 . . 4 Max Kills in Single Turn 3 | 1 2 3 . 1 1 Gunslinging 1 | . 1 . . . . Exploded 3 | . . 3 . . . Melee 1 | . . . . . 1 Uniques/NPCs Destroyed . | . . . . . . Combat | -11 -10 -10 -10 -9 -8 -------- Run | Yrd Mat Min Exi Min Mat Hostile Shots Fired 191 | . 56 5 . . 130 Missed 43 | . 14 . . . 29 Damage Taken 2361 | . 567 113 . . 1681 Core 710 | . 103 48 . . 559 Absorbed by Shields . | . . . . . . Core Remaining (%) 69 | 100 . . . 39 . Volleys Fired 90 | 3 58 4 . . 25 Largest 2 | 2 2 1 . . 2 Hottest 46 | 40 46 30 . . 46 Shots Fired 161 | 6 103 4 . 1 47 Gun 156 | 6 103 . . . 47 Cannon . | . . . . . . Launcher 5 | . . 4 . 1 . Special . | . . . . . . Kinetic 156 | 6 103 . . . 47 Thermal . | . . . . . . Explosive 5 | . . 4 . 1 . Electromagnetic . | . . . . . . Robot Hit Streak 20 | 2 12 3 . . 20 Robot Miss Streak 3 | 2 3 . . 1 1 Penetration Max . | . . . . . . Secondary Targets 1 | . 1 . . . . Max Gunslinging Chain 1 | . 1 . . . . Shots Hit Robots 124 | 3 68 5 . . 48 Core Hits 58 | 2 31 11 . 1 13 Critical Kills 1 | . . . . . 1 Critical Parts Destroyed 2 | . . 1 . . 1 Critical Strikes 3 | . . 1 . . 2 Smash 3 | . . 1 . . 2 Melee Attacks 47 | . 5 5 . . 37 Impact 47 | . 5 5 . . 37 Slashing . | . . . . . . Piercing . | . . . . . . Sneak Attacks 4 | . 1 1 . . 2 Combat Hostiles . | . . . . . . Follow-up Attacks . | . . . . . . Damage Inflicted 2523 | 36 1010 469 . 17 991 Guns 1529 | 36 928 . . . 565 Cannons . | . . . . . . Explosions 324 | . . 307 . 17 . Melee 668 | . 80 162 . . 426 Ramming 2 | . 2 . . . . Kinetic 1529 | 36 928 . . . 565 Thermal . | . . . . . . Explosive 324 | . . 307 . 17 . Electromagnetic . | . . . . . . Impact 668 | . 80 162 . . 426 Slashing . | . . . . . . Piercing . | . . . . . . Highest Corruption 1 | . 1 1 1 1 . Average Corruption 1 | . 1 1 1 1 . Corruption Purged . | . . . . . . Corruption Blocked . | . . . . . . Effects 33 | . 5 17 3 8 . Message Errors 11 | . . 6 2 3 . Matter Fused 5 | . 2 3 . . . Heat Flow Errors 6 | . 1 3 . 2 . Energy Discharges 3 | . . 1 1 1 . Parts Fused 1 | . . 1 . . . Data Loss (minor) 1 | . . 1 . . . Data Loss (major) 2 | . 1 . . 1 . Misfires 2 | . 1 . . 1 . Alerts 2 | . . 2 . . . Overload Shots . | . . . . . . Overflow Damage 150 | . . 42 . . 108 Projectiles . | . . . . . . Explosions . | . . . . . . Melee 150 | . . 42 . . 108 Knockbacks 4 | . 1 1 . . 2 Impact 4 | . 1 1 . . 2 Kinetic . | . . . . . . Secondary . | . . . . . . Self-Inflicted Damage 1 | . 1 . . . . Shots . | . . . . . . Rammed 1 | . 1 . . . . Targets Rammed 1 | . 1 . . . . Kicked . | . . . . . . Crushed . | . . . . . . Highest Temperature 175 | . 98 163 . 175 41 Average Temperature 55 | . 25 72 . 92 16 Received Heat Transfer 1191 | . 231 15 . . 945 Siege Activations . | . . . . . . Robots Corrupted . | . . . . . . Combat Hostiles . | . . . . . . Parts Fried 4 | . . 1 . . 3 Impact Corruptions 4 | . . 1 . . 3 Robots Melted . | . . . . . . Combat Hostiles . | . . . . . . Parts Melted . | . . . . . . Heat Transferred . | . . . . . . Parts Sabotaged . | . . . . . . Parts Stolen . | . . . . . . Parts Stripped . | . . . . . . Power Chain Reactions . | . . . . . . Alert | -11 -10 -10 -10 -9 -8 ------- Run | Yrd Mat Min Exi Min Mat Peak Influence 235 | 5 154 100 . 12 235 Initial 17 | . 3 17 . . . Average 35 | 1 52 22 . 4 70 Maximum Alert Level 1 | . . . . . 1 Low Security (%) 99 | 100 100 100 . 100 96 Level 1 . | . . . . . 3 Level 2 . | . . . . . . Level 3 . | . . . . . . Level 4 . | . . . . . . Level 5 . | . . . . . . High Security . | . . . . . . Max Security . | . . . . . . Squads Dispatched 6 | . 3 . . . 3 Investigation 3 | . 2 . . . 1 Extermination . | . . . . . . Reinforcement 3 | . 1 . . . 2 Assault . | . . . . . . Garrison . | . . . . . . Intercept . | . . . . . . Searches Triggered . | . . . . . . Construction Impeded . | . . . . . . Haulers Reinforced . | . . . . . . Active Scanning Responses . | . . . . . . Cargo Convoy Interrupts . | . . . . . . Stealth | -11 -10 -10 -10 -9 -8 --------- Run | Yrd Mat Min Exi Min Mat Distress Signals 2 | . . . . . 2 Communications Jammed . | . . . . . . Distress Signals . | . . . . . . Times Spotted 54 | . 23 7 . . 24 Peak Tracking Total 15 | . 3 3 . . 15 Tactical Retreats 3 | . . . . . 3 Traps | -11 -10 -10 -10 -9 -8 ------- Run | Yrd Mat Min Exi Min Mat Traps Triggered 5 | . 5 . . . . Indirectly . | . . . . . . Trap Hack Attempts . | . . . . . . Triggered . | . . . . . . Disarmed . | . . . . . . Reprogrammed . | . . . . . . Reused . | . . . . . . Traps Extracted . | . . . . . . Installed . | . . . . . . Triggered . | . . . . . . Machines | -11 -10 -10 -10 -9 -8 ---------- Run | Yrd Mat Min Exi Min Mat Machines Disabled 1 | . 1 . . . . Max in Single Turn 1 | . 1 . . . . Machines Repaired . | . . . . . . Machines Dismantled . | . . . . . . Machines Sabotaged . | . . . . . . Overloaded Fab Kills . | . . . . . . Hacking | -11 -10 -10 -10 -9 -8 --------- Run | Yrd Mat Min Exi Min Mat Machines Accessed 10 | . 5 . 1 . 4 Terminals 9 | . 5 . . . 4 Fabricators . | . . . . . . Repair Stations . | . . . . . . Recycling Units . | . . . . . . Scanalyzers . | . . . . . . Garrison Access . | . . . . . . Total Hacks 23 | . 13 . 1 . 9 Successful 17 | . 8 . 1 . 8 Failed 6 | . 5 . . . 1 Catastrophic 2 | . 2 . . . . Database Lockouts . | . . . . . . Manual 22 | . 13 . 1 . 8 Terminals 22 | . 13 . . . 9 Fabricators . | . . . . . . Repair Stations . | . . . . . . Recycling Units . | . . . . . . Scanalyzers . | . . . . . . Garrison Access . | . . . . . . Terminal Hacks 5 | . 2 . 1 . 2 Robot Analysis 1 | . 1 . . . . Alert Level 1 | . . . . . 1 Unreport Threat 1 | . 1 . . . . Dispatch Records 1 | . . . . . 1 Derelict Proto ID Bank 1 | . . . 1 . . Fabricator Hacks . | . . . . . . Repair Station Hacks . | . . . . . . Recycling Unit Hacks . | . . . . . . Scanalyzer . | . . . . . . Garrison Access Hacks . | . . . . . . Unauthorized Hacks 12 | . 6 . . . 6 Terminals 12 | . 6 . . . 6 Track 2 | . 1 . . . 1 Assimilate 1 | . . . . . 1 Botnet 9 | . 5 . . . 4 Fabricators . | . . . . . . Repair Stations . | . . . . . . Recycling Units . | . . . . . . Scanalyzers . | . . . . . . Garrison Access . | . . . . . . Data Cores Recovered 1 | . 1 . . . . Used 1 | . 1 . . . . Hacking Detections 6 | . 2 . . . 4 Full Trace Events 2 | . 1 . . . 1 Feedback Events . | . . . . . . Feedback Blocked . | . . . . . . Robot Schematics Acquired . | . . . . . . Robots Built . | . . . . . . Authchips . | . . . . . . Time . | . . . . . . Total Robot Build Rating . | . . . . . . Part Schematics Acquired . | . . . . . . Parts Built . | . . . . . . Authchips . | . . . . . . Time . | . . . . . . Total Part Build Rating . | . . . . . . Parts Repaired . | . . . . . . Time . | . . . . . . Parts Recycled . | . . . . . . Recycled Matter . | . . . . . . Retrieved Matter . | . . . . . . Retrieved Components . | . . . . . . Parts Scanalyzed . | . . . . . . Part Schematics Acquired . | . . . . . . Parts Damaged . | . . . . . . Bothacking | -11 -10 -10 -10 -9 -8 ------------ Run | Yrd Mat Min Exi Min Mat Used RIF Installer . | . . . . . . Robots Hacked . | . . . . . . Non-combat . | . . . . . . Combat . | . . . . . . Robot Hacks Applied . | . . . . . . Relay Couplers Released . | . . . . . . Fabnet Peak Effective % . | . . . . . . Robots Rewired . | . . . . . . Allies Hacked . | . . . . . . Hacks Repelled . | . . . . . . Allies | -11 -10 -10 -10 -9 -8 -------- Run | Yrd Mat Min Exi Min Mat Total Allies . | . . . . . . Largest Group . | . . . . . . Highest-Rated Group . | . . . . . . Highest-Rated Ally . | . . . . . . Total Orders . | . . . . . . Ally Attacks . | . . . . . . Total Damage . | . . . . . . Kills . | . . . . . . Allies Corrupted . | . . . . . . Allies Melted . | . . . . . . Intel | -11 -10 -10 -10 -9 -8 ------- Run | Yrd Mat Min Exi Min Mat Robot Analysis Total 1 | . 1 . . . . Derelict Logs Recovered 3 | . . 1 . 2 . Drone Launches . | . . . . . . Drone Recoveries . | . . . . . . Exploration | -11 -10 -10 -10 -9 -8 ------------- Run | Yrd Mat Min Exi Min Mat Turns Passed 5734 | 77 1529 2038 310 925 855 Spaces Moved 3093 | 56 844 890 221 639 443 Core 10 | 4 4 . . . 2 Treads 16 | 6 2 . . . 8 Legs . | . . . . . . Wheels 3067 | 46 838 890 221 639 433 Hover . | . . . . . . Flight . | . . . . . . Fastest Speed 50 | 50 95 200 140 135 105 Average Speed 157 | 94 141 214 140 135 122 Slowest Speed 1500 | 160 1500 215 140 135 1400 Overloaded Moves . | . . . . . . Propulsion Burnouts . | . . . . . . Robots Hopped . | . . . . . . Cave-ins Triggered 2 | . . 2 . . . Exploration Rate (%) 59 | 4 98 90 42 89 31 Regions Visited 5 Branch Regions 3 Pre-discovered Areas 1 | . . . . 1 . Known Exits Taken 4 | . 1 1 1 1 . Unknown Exits Taken 1 | 1 . . . . . Scrap Searched 3 | . . 1 . 2 . Spaces Dug 27 | . 4 3 . . 20 Terrain Destroyed 63 | . 4 32 . 7 20 Melee 27 | . 4 3 . . 20 Projectile . | . . . . . . AOE 36 | . . 29 . 7 . Terrain Rammed . | . . . . . . Walls Destroyed . | . . . . . . Machines Disabled . | . . . . . . Actions | -11 -10 -10 -10 -9 -8 --------- Run | Yrd Mat Min Exi Min Mat Total 3706 | 70 1065 1002 222 702 645 Wait 347 | . 85 101 . 56 105 Move 3087 | 55 843 888 220 638 443 Hop . | . . . . . . Pick Up 49 | 6 33 1 1 2 6 Fast Attach 12 | 6 3 . . 1 2 Attach 10 | . 3 1 1 1 4 Detach 1 | . . . . . 1 Swap 37 | . 21 1 . 1 14 Drop 24 | . 13 . . 3 8 Fire 90 | 3 58 4 . . 25 Melee 47 | . 5 5 . . 37 Ram 1 | . 1 . . . . Kick . | . . . . . . Crush . | . . . . . . Escape Stasis 1 | . . 1 . . . Rewire . | . . . . . . Trap . | . . . . . . Miscellaneous . | . . . . . . Route ------- -11/Scrapyard -10/Materials (discovered 4 exits: *Mat x3 / *Min) -10/Mines (discovered 3 exits: *Mat / *Exi / *Sub) -10/Exiles -9/Mines -8/Materials (discovered 2 exits: *Fac x2) History --------- Turn | Location | Event 31 | -11/Scrapyard | Discovered new exit (range 15) 78 | -11/Scrapyard | Entered Materials 142 | -10/Materials | Discovered new exit (range 6) 310 | -10/Materials | Build established: Mutant 492 | -10/Materials | Discovered new exit (range 16) 1066 | -10/Materials | Discovered new exit (range 8) 1077 | -10/Materials | Identified exit to Materials 1458 | -10/Materials | Discovered exit to Materials (range 15) 1605 | -10/Materials | Identified exit to Mines 1607 | -10/Materials | Entered Mines 1608 | -10/Mines | Assembled infested the area 1615 | -10/Mines | Met a Derelict bent on vengeance 2257 | -10/Mines | Core integrity fell below 50% 2373 | -10/Mines | Crushed by falling debris 2405 | -10/Mines | Crushed by falling debris 2635 | -10/Mines | Learned 4 Materials zone layouts 2637 | -10/Mines | Discovered new exit (range 6) 2648 | -10/Mines | Identified exit to Subcaves 2717 | -10/Mines | Discovered new exit (range 5) 2736 | -10/Mines | Identified exit to Exiles 3299 | -10/Mines | Discovered exit to Materials (range 11) 3645 | -10/Mines | Entered Exiles 3684 | -10/Exiles | Met 8R-AWN 3708 | -10/Exiles | Met EX-HEX 3747 | -10/Exiles | Met EX-BIN 3767 | -10/Exiles | Aligned with FarCom system 3768 | -10/Exiles | Given EX-Vault access code 3800 | -10/Exiles | Opened EX-Vault 3813 | -10/Exiles | Found Cloak of Protection 3845 | -10/Exiles | Warned to stay clear of 0b10 Research branches 3939 | -10/Exiles | Discovered new exit (range 14) 3953 | -10/Exiles | Identified exit to Mines 3955 | -10/Exiles | Left Exiles lab with Cloak of Protection 3955 | -10/Exiles | Entered Mines 3975 | -9/Mines | Learned Materials terminal intel 4152 | -9/Mines | Discovered new exit (range 6) 4161 | -9/Mines | Identified exit to Materials 4196 | -9/Mines | Learned location of Zion (-6) 4764 | -9/Mines | Received a Rocket Launcher from a helpful Derelict 4880 | -9/Mines | Entered Materials 4880 | -8/Materials | Evolved 4 slots: Propulsion x2, Utility x2 4881 | -8/Materials | Identified exit to Factory 4882 | -8/Materials | Loaded intel: 12 terminal locations 5203 | -8/Materials | Build established: Assassin 5279 | -8/Materials | Discovered exit to Factory (range 5) 5695 | -8/Materials | Core integrity fell below 50% 5705 | -8/Materials | Core integrity fell below 20% 5735 | -8/Materials | Destroyed by G-47 Trooper with Particle Gun Last Messages --------------- 05682_ Lgt. Treads destroyed. 05685_ G-47 Trooper destroyed. 05685_ W-25 Informer sends out distress signal. 05685_ Terminal disabled. 05687_ K-01 Serf collects debris. 05688_ Lgt. Nuclear Core destroyed. 05688_ Critical hit (Burn: +37). 05689_ Arm. Wheel destroyed. 05690_ K-01 Serf collects debris. 05691_ Critical hit (Burn: +37). 05691_ G-47 Trooper knocked back. 05692_ Arm. Wheel destroyed. 05692_ Critical hit (Burn: +37). 05693_ K-01 Serf collects debris. 05697_ U-05 Engineer builds a Wall. 05704_ Slug penetrates Wall. 05704_ K-01 Serf collects debris. 05705_ U-05 Engineer builds a Wall. 05708_ Arm. Wheel destroyed. 05727_ Signal Interpreter destroyed. Map ----- +----------------------------------------------------+ | ?????????????????????????????????????????????????? | | ?????????????????????????????????????????????????? | | ???????????????????????? ????????????????????????? | | ????????????????????????? ??????????????????????? | | ?????#####??????????????? ??????????????????????? | | ????? ??????????????? ??????????????????????? | | ????? ??????????????? ??????????????????????? | | ?????# #???????????????# ?????????????""???????? | | ?????# #???????????????# ?????????????T"?# ### | | ?????# #???????????????# ?????????????""?# #?? | | ?????# #???????????????# ??####??????????# #?? | | ?????# #????????????####+#### ##?????????# #?? | | ?????# #????????????# %## ##????????# #?? | | ?????# #????????????# ###g#????????# #?? | | ?????# #????????????# #######??????# ##? | | ?????# #????????????#=[! #%% ####### #? | | ?????# ##?????"T"???#[[ # #? | | ?????# ##???????????#[[ %+ w #? | | ?????# ##?????????### #% % #? | | ?????# ##????######## #! ####### #? | | #????# ##????# # guu ## ##??????######? | | ?????# #???#?# # ggg ## #?????????????? | | ?????# #?????# # ggHb ## #?????????????? | | ????## #???#?# "T" ####g##### #???????####### | | ????## ##????# """ #?#g##???# ??????? | | ?#???# ####??# #?#@#????# ?????? | | ?##### ##########+########???# ????? | | ?# = g g ##?????#### ## | | ?# < * #?????????# #? | | ?# % """" #?????????# #? | | ?######+################ """? #?????????# #? | | ?# =!%=! #??#?????????? """? #??????#### #? | | ?#"""[[%%= #??????????#??? #?????? ## #? | | ?#"R [%% #######?????? ? #????????????? | | ##""" %% # ####### ??????????????? | | ?# # ???????????????? | | ?# # T ????????????????? | | ?#= # ?? ?? ?????????????? | | ?# ] # ##########+?????????????????????? | | ?############ ##?##??????? ????? ??????????????? | | ????#???????# ##?#?????????????????????????????? | | ????????##??# #?????#?????? ???????????????????? | | ????????????# #???????? ?? ?#?????#????????????? | | ?#?????????## #???#???????????? ##???????????? | | ??########### #??#???#?????????? #????????????? | | ??# T # ################? #????????????? | | #?# # #?# [[ #? #????????????? | | ??# # #?# [[ # #????????????? | | ??# # ### # #????????????? | | ??# + #?# # #????????????? | +----------------------------------------------------+ Best States ------------- Heat Dissipation 31 Energy Generation 14 Energy Capacity 250 Matter Stores 300 Matter Capacity 300 Sight Range 18 Terrain Scan Range 14 Terrain Scan Density 10 Armor Coverage 150 Evasion (%) 44 Recoil Reduction 2 Offensive Hacking 10 Item Schematics ----------------- None Robot Schematics ------------------ None Fabricated ------------ Nothing Alien Tech Used ----------------- None Achievements -------------- None Challenges ------------ None Game ------ Seed HoverCommInterpreter Manual? 0 Play Time 00:39:26 Cumulative 22.4 hours Start 2024.03.07 @ 15:25:39 End 2024.03.07 @ 16:06:14 Sessions 1 Manual Loads 0 Difficulty Rogue Special Mode None Game No. 22 Rogue 22 Adventurer 0 Explorer 0 Win Type - Total 0 Types 0/0/0/0/0/0/0/0/0 Lore% 21 Gallery% 20 Achievement% 21 Wizard Run 0 Options --------- Layout 1 ASCII 0 Keyboard 0 Movement Numpad Keybinds 0 Fullscreen 2 Font 24/Smallcaps Map View 50x35 Zoom Use 0% Tactical HUD 1 Map Filters NONE Filters NONE Steam 0 RUN: f4ef9635-cb5b-4415-876b-1107faebd32f